[Event "Bangladesh SAIF Powertec-ch 2024"]
[Site "Dhaka"]
[Date "2024.07.09"]
[Round "12.6"]
[White "Chatterjee, Debaraj"]
[Black "Amit Bikram, Roy"]
[Result "1-0"]
[ECO "D85"]
[WhiteElo "2132"]
[BlackElo "1989"]
[Annotator "RC"]
[PlyCount "47"]
[EventDate "2024.06.23"]
[EventType "tourn"]
[EventCountry "BAN"]
[SourceTitle "playchess.com"]
[Source "ChessBase"]
[SourceQuality "1"]
[TimeControl "40/5400+30:1800+30"]

1. d4 {[%emt 0:02:10]} Nf6 {[%emt 0:00:11]} 2. c4 {[%emt 0:00:20]} g6 {[%emt 0:00:03]} 3. Nc3 {[%emt 0:00:06]} d5 {[%emt 0:00:32]} 4. cxd5 {[%emt 0:00:33]} Nxd5 {[%emt 0:00:03]} 5. e4 {[%emt 0:00:11]} Nxc3 {[%emt 0:00:10]} 6. bxc3 {[%emt 0:00:04]} Bg7 {[%emt 0:00:07]} 7. Nf3 {[%emt 0:00:08]} c5 {[%emt 0:00:25]} 8. Rb1 {[%emt 0:00:35]} O-O {[%emt 0:00:19]} 9. Be2 {[%emt 0:00:07]} Nc6 {[%emt 0:00:19]} 10. d5 {[%emt 0:00:32]} Ne5 {[%emt 0:00:12]} 11. Nxe5 {[%emt 0:00:58]} Bxe5 {[%emt 0:00:03]} 12. Qd2 {[%emt 0:00:39]} e6 {[%emt 0:00:18]} 13. f4 {[%emt 0:02:59]} Bc7 {[%emt 0:00:16]} 14. O-O {[%emt 0:00:21]} exd5 {[%emt 0:00:10]} 15. exd5 {[%emt 0:00:06]} Ba5 {[%emt 0:00:05]} 16. d6 {[%emt 0:00:41]} Rb8 {[%emt 0:04:05]} 17. Rb5 {[%emt 0:08:39]} Bd7 {[%emt 0:03:44]} 18. f5 {[%emt 0:21:54]} Bxb5 {[%emt 0:08:54]} 19. Bxb5 {[%emt 0:00:30]} a6 {[%emt 0:03:35]} 20. f6 {[%emt 0:11:28]} Bxc3 {[%emt 0:00:08]} 21. Qxc3 {[%emt 0:00:06]} Kh8 {[%emt 0:15:33]} 22. Qd2 {[%emt 0:06:11]} axb5 {[%emt 0:03:07]} 23. Qh6 {[%emt 0:00:20]} Rg8 {[%emt 0:00:02]} 24. Rf3 {[%emt 0:00:28]} 1-0